{"text_format":"1","workbook":"xlsx","n_sheets":3,"sheets":["ورقة2","ورقة1","ورقة3"],"not_rendered":{"charts":0,"images":1,"macros":1,"external_links":0,"defined_names":1,"comments":0,"pivot_tables":0},"unopened":[],"bounds":{"document_bytes":16777216,"sheet_cells":100000,"rows_first":2000,"rows_last":500,"rows_between":2000,"halvings":0,"cell_chars":16384,"cell_head_chars":4096},"cells_cut":0,"cells_raw":0,"read":"whole","date_system":"1900"}

{"sheet":"ورقة2","index":0,"n_rows":20,"n_cols":3,"rows_kept":20,"cut":false,"hidden":false,"merged":[[13,0,17,0]]}
["المدخلات ","القيمه"]
["اسم العامل","شمشاد "]
["رقم العامل",1351]
["تليفون العامل فب بلده ان وجد",0]
["     تاريخ تعين العامل ","16/5/2015"]
["الاساسي",1332]
["اضافي",468]
["تغذيه",200]
["اكراميه",0]
["بدلات اخري للراتب",0]
["العامل المذكور باشر العمل بدايه من تاريخ ","16/5/2015"]
["وتتم التصفيه وصرف مستحقاته عن الفتره من ","15/5/2016","2019-01-22"]
["عدد ايام الغياب خلال الفتره",0]
["رواتب مستحقه ","بدايه التاريخ","نهايه التاريخ"]
[null,"2018-01-12","31/12/2018"]
[null,"2019-01-01","2019-01-23"]
[]
[]
["سلف نقديه ",0]
["عهد نقديه "]

{"sheet":"ورقة1","index":1,"n_rows":55,"n_cols":24,"rows_kept":55,"cut":false,"hidden":false,"merged":[[43,4,43,6],[45,1,45,6],[52,1,52,6],[26,1,26,7],[30,1,30,7],[26,9,26,10],[30,9,30,10],[32,5,32,7],[32,9,32,10],[15,1,15,3],[17,1,17,3],[19,1,20,2],[22,1,23,2],[54,1,54,2],[54,3,54,4],[54,5,54,6],[54,7,54,8],[47,1,47,4],[9,1,9,3],[11,1,11,2],[1,1,1,10],[5,1,5,5],[7,1,7,3],[7,7,7,8]]}
[]
[null,"                                    نموذج تصفيه مستحقات           "]
[null,"تاريخ اليوم   / ",{"$f":"TODAY()","v":"2019-02-25"},null,null,null,"تأشيره :","خروج نهائي ",null,null,null,null,null,null,null,null,"أكثر من 5 سنوات ",30,30]
[null,"موافق هجري /",{"$f":"C3","v":"2019-02-25"},null,null,null,null,null,null,null,null,null,null,null,null,null,"اقل من 5 سنوات ",21,15]
[null,null,null,null,null,null,null,null,null,null,null,null,"خروج نهائي "]
[null,"المــكـــرم / المـــدير العـــام ",null,null,null,null,"المحترم ؛؛؛؛؛",null,null,null,null,null,"خروج وعوده "]
[]
[null," الموضوع بخصوص  : تصفيه العامل",null,null,{"$f":"ورقة2!B2","v":"شمشاد "},"رقم العامل :",{"$f":"ورقة2!B3","v":1351},"تليفون العامل في بلده",null,{"$f":"ورقة2!B4","v":0},null,null,"أول تصفيه ","أكثر من 5 سنوات "]
[null,null,null,null,null,null,null,null,null,null,null,null,"ثاني تصفيه ","اقل من 5 سنوات "]
[null,"                              تاريخ تعين العامل ",null,null,{"$f":"ورقة2!B5","v":"16/5/2015"},null,"أول تصفيه ",null,{"$f":"IF(F21>4,Q3,Q4)","v":"اقل من 5 سنوات "},{"$f":"VLOOKUP(I10,Q3:S4,2,FALSE)","v":21},{"$f":"VLOOKUP(I10,Q3:S4,3,FALSE)","v":15},null,"ثالث تصفيه "]
[]
[null,"بيانات الراتب  : -  الاساسي ",null,{"$f":"ورقة2!B6","v":1332},"اضافي",{"$f":"ورقة2!B7","v":468},"تغذيه ",{"$f":"ورقة2!B8","v":200},"اكراميه ",{"$f":"ورقة2!B9","v":0}]
[]
[null,null,null,null,"اخري",{"$f":"ورقة2!B10","v":0},"اجمالي \nالراتب",{"$f":"D12+F12+H12+J12+F14","v":2000},{"$f":"kh_TextNum(H14,,\"ريال سعودي\",,\"هللة\")","v":"فقط ألفا ريال سعودي"}]
[null,null,null,null,null,null,null,null,"معادل الماكرو لا يوجد بها ريال سعودي"]
[null,"العامل المذكور باشر العمل بدايه من تاريخ ",null,null,{"$f":"ورقة2!B11","v":"16/5/2015"},null,null,null,"تم إضافة الماكرو به ريال سعودي"]
[]
[null,"وتتم التصفيه وصرف مستحقاته عن الفتره من ",null,null,{"$f":"ورقة2!B12","v":"15/5/2016"},"الي",{"$f":"ورقة2!C12","v":"2019-01-22"}]
[]
[null,"وكانت مده خدمته عن الفتره تفصيلي :",null,"يوم","شهر ","سنه","بأحمالي ايام الخدمه",null,"معدل البدل للاجازه السنويه",null,"برجاء وضع معادله لتحديد المعدل بيحث اذا كان العامل اقل من خمس سنوات تكون المعادل اجمالي ايام الخدم /360×21 يوم واذا كانت اكثر من "]
[null,null,null,{"$f":"INT((INT((G21/365.25-INT(G21/365.25))*365.25)/30.5-INT(INT((G21/365.25-INT(G21/365.25))*365.25)/30.5))*30.5)","v":8},{"$f":"INT(INT((G21/365.25-INT(G21/365.25))*365.25)/30.5)","v":8},4,{"$f":"G18-E18+1","v":983},null,{"$f":"INT($G$21/360*J10)","v":57},null,"خمس سنوات تكون اجمالي يام الخدمه /360×30يوم  وبرجاء اذا كان العامل خدمته مرتبطه بين فترتين اقل من 4 سنوات وايضا اكثر من 5سنوات "]
[]
[null,"صافي الايام بعد استقطاع الغيابات =",null,"اجمالي مده الخدمه بالايام  -"," ايام الغياب ","=",null,null,"معدل بدل نهايه الخدمه ",null,"برجاء وضع معادله لتحديد المعدل بيحث اذا كان العامل اقل من خمس سنوات تكون المعادل اجمالي ايام الخدم /360×15 يوم "]
[null,null,null,{"$f":"G21","v":983},{"$f":"ورقة2!B13","v":0},{"$f":"D24-E24","v":983},null,null,{"$f":"INT($G$21/360*K10)","v":40},null,"واذا كانت اكثر من خمس سنوات تكون اجمالي يام الخدمه /360×30يوم "]
[null,"اولا :- حساب بدل الاجازه السنويه  "]
[]
[null,"اجمالي الراتب  × معدل البدل للاجازه السنويه / الايام حسب مده الخدمه ان كانت اصغر او اكثر من خمس سنوات =",null,null,null,null,null,null,{"$f":"(I21/30)*H14","v":3800}]
[]
[null,"ثانيا:- حساب مكافاءه نهايه الخدمه "]
[]
[null,"اجمالي الراتب  × معدل البدل لمكافاءه نهايه الخدمه / الايام حسب مده الخدمه ان كانت اصغر او اكثر من خمس سنوات =",null,null,null,null,null,null,{"$f":"(I24/30)*H14","v":2666.6666666666665}]
[]
[null,null,null,null,null,"الاجمالي الكلي للمكافاءه وبدل الاجازه ",null,null,{"$f":"+I31+I27","v":6466.6666666666661}]
[null,"ثالثا:- حساب الرواتب  المستحقه للعامل خلال الفتره  ",null,null,null,null,null,null,null,null,null,null,null,null,null,null,null,null,null,null,"بعد عدد صحيح "]
[null,null,null,null,null,null,null,"المبلغ ",null,null,null,null,null,null,null,null,null,null,null,null,"من الأشهر â","شهر","يوم"]
[null,-1,"رواتب مستحقه من تاريخ",{"$f":"ورقة2!B15","v":"2018-01-12"},"حتي تاريخ ",{"$f":"ورقة2!C15","v":"31/12/2018"},null,{"$f":"IF(U36=F36,V36+1,V36+W36/30)*$H$14","v":23266.666666666664},null,null,null,null,null,null,null,null,null,null,null,null,{"$f":"EDATE(D36,V36+1)-1","v":"2019-01-11"},{"$f":"INT((F36-D36)/30.5)","v":11},{"$f":"F36-EDATE(D36,V36)","v":19},"يتم احتساب المرتب كامل في حاله تم استكمال الشهر حتي 30او 31  وفي الحاله الثانيه ان لم يتم استكماله حتي 30او 31 يتم احتساب عدد الايام في قيمه اليوم الواحد فقط "]
[]
[null,-2,"رواتب مستحقه من تاريخ",{"$f":"ورقة2!B16","v":"2019-01-01"},"حتي تاريخ ",{"$f":"ورقة2!C16","v":"2019-01-23"},null,{"$f":"IF(U38=F38,V38+1,V38+W38/30)*$H$14","v":1466.6666666666665},null,null,null,null,null,null,null,null,null,null,null,null,{"$f":"EDATE(D38,V38+1)-1","v":"2019-01-31"},{"$f":"INT((F38-D38)/30.5)","v":0},{"$f":"F38-EDATE(D38,V38)","v":22}]
[]
[null,-3,"رواتب مستحقه من تاريخ",{"$f":"ورقة2!B17","v":0},"حتي تاريخ ",{"$f":"ورقة2!C17","v":0}]
[]
[null,-4,"رواتب مستحقه من تاريخ",{"$f":"ورقة2!B18","v":0},"حتي تاريخ ",{"$f":"ورقة2!C18","v":0}]
[]
[null,null,null,null,"اجمالي قيمه الراتب المستحق للعامل ",null,null,{"$f":"H36+H38+H40+H42","v":24733.333333333332},{"$f":"kh_TextNum(H44,,\"ريال سعودي\",,\"هللة\")","v":"فقط أربعة وعشرون ألفاً وسبعمائة وثلاثة وثلاثون ريال سعودياً  و (33) هللة"}]
[]
[null,"اجمالي قيمه مستحقات العامل من بدل الاجازه بدل مكافاءه نهايه الخدمه والمرتبات المستحقه ",null,null,null,null,null,{"$f":"+H44+I33","v":31200},{"$f":"kh_TextNum(H46,,\"ريال سعودي\",,\"هللة\")","v":"فقط واحد وثلاثون ألفاً ومائتا ريال سعودي"}]
[]
[null,"               المستقطاعات المستحقه علي العامل ",null,null,null,null,null,{"$f":"+D50+D51","v":0}]
[]
[null,-1,"سلف نقديه ",{"$f":"ورقة2!B19","v":0},"ريال سعودي"]
[null,-2,"عهد نقديه ",{"$f":"ورقة2!B20","v":0},"ريال سعودي"]
[]
[null,"صافي قيمه المستحق للعامل بعد الاستقطاعات ",null,null,null,null,null,{"$f":"+H45-H47","v":0}]
[]
[null,"توقيع (H.R)",null,"توقيع المحاسب",null,"مدير الحسابات",null,"اعتماد المدير العام"]

{"sheet":"ورقة3","index":2,"n_rows":0,"n_cols":0,"rows_kept":0,"cut":false,"hidden":false,"merged":[]}